bitfinex-derivatives/quotes_BTCF0:USTF0_20220103
["timestamp","ask_amount","ask_price","bid_price","bid_amount"]
[1641215435991,0.18033567,47282.0,47275.0,0.02115332]
[1641215436193,0.18033567,47282.0,47277.0,0.02]
[1641215436392,0.18033567,47282.0,47277.0,0.14]
[1641215436601,0.18033567,47282.0,47277.0,0.33]
[1641215437001,0.14033567,47282.0,47277.0,0.19]
[1641215437204,0.14033567,47287.0,47281.0,0.14]
[1641215437401,0.14033567,47287.0,47286.0,0.14]
[1641215437902,0.14033567,47287.0,47282.0,0.08623]
[1641215438102,0.14033567,47287.0,47286.0,0.14]
[1641215438303,0.14133567,47287.0,47286.0,0.14]
[1641215438501,0.14033567,47287.0,47286.0,0.14]
[1641215438701,0.14133567,47287.0,47282.0,0.186]
[1641215438901,0.14133567,47287.0,47282.0,0.326]
[1641215438902,0.14033567,47287.0,47282.0,0.326]
[1641215439101,0.14033567,47287.0,47282.0,0.186]
[1641215439301,0.14033567,47287.0,47282.0,0.326]
[1641215440002,0.14033567,47287.0,47282.0,0.14]
[1641215440403,0.14033567,47287.0,47282.0,0.328]
[1641215440602,0.14033567,47287.0,47282.0,0.188]
[1641215440902,0.14033567,47287.0,47283.0,0.14]
[1641215441101,0.14033567,47287.0,47282.0,0.188]
[1641215441302,0.14033567,47287.0,47286.0,0.02]
[1641215441502,0.14133567,47287.0,47286.0,0.14]
[1641215441702,0.14033567,47287.0,47286.0,0.14]
[1641215442102,0.14033567,47287.0,47282.0,0.14]
[1641215442502,0.14033567,47287.0,47286.0,0.182]
[1641215443105,0.14133567,47287.0,47286.0,0.182]
[1641215444003,0.74010285,47287.0,47282.0,0.14]
[1641215444204,0.73910285,47287.0,47282.0,0.14]
[1641215444403,0.73910285,47287.0,47286.0,0.182]
[1641215444604,0.74010285,47287.0,47286.0,0.182]
[1641215445804,0.14133567,47287.0,47282.0,0.14]
[1641215446008,0.14033567,47287.0,47282.0,0.14]
[1641215446306,0.23036523,47287.0,47282.0,0.14]
[1641215446506,0.23036523,47287.0,47282.0,0.328]
[1641215446904,0.23036523,47287.0,47282.0,0.188]
[1641215447507,0.14033567,47287.0,47282.0,0.188]
[1641215447708,0.59878657,47286.0,47282.0,0.188]
[1641215447907,0.59878657,47286.0,47281.0,0.14]
[1641215448409,0.59878657,47286.0,47281.0,0.33]
[1641215449408,0.97860972,47287.0,47281.0,0.33]
[1641215449608,0.14033567,47287.0,47281.0,0.33]
[1641215449811,1.43731313,47283.0,47281.0,0.14]
[1641215450008,1.53609313,47283.0,47279.0,0.61333965]
[1641215450210,0.04,47280.0,47279.0,0.59218819]
[1641215450810,1.53609313,47283.0,47279.0,0.59218819]
[1641215451213,0.04,47280.0,47279.0,0.59218819]
[1641215451610,1.49609313,47283.0,47279.0,0.59218819]
[1641215452012,0.05878,47283.0,47279.0,0.59218819]
[1641215452414,0.0900307,47280.0,47279.0,0.77118819]
[1641215452611,0.0900307,47280.0,47279.0,0.179]
[1641215453212,1.44059055,47280.0,47279.0,0.179]
[1641215453912,1.44059055,47280.0,47278.0,0.14]
[1641215454412,1.44059055,47280.0,47278.0,0.321]
[1641215454613,0.1300307,47282.0,47278.0,0.321]
[1641215454813,0.0900307,47282.0,47278.0,0.321]
[1641215455312,1.44062874,47279.0,47278.0,0.321]
[1641215456414,1.44062874,47279.0,47278.0,0.322]
[1641215457814,0.0900307,47282.0,47278.0,0.14]
[1641215458014,0.0900307,47281.0,47278.0,0.14]
[1641215458414,0.0900307,47281.0,47278.0,0.322]
[1641215458915,0.0900307,47282.0,47278.0,0.322]
[1641215459715,0.0900307,47280.0,47278.0,0.322]
[1641215459915,0.0900307,47280.0,47278.0,0.14]
[1641215460517,0.0900307,47280.0,47278.0,0.327]
[1641215460717,1.44062425,47279.0,47278.0,0.327]
[1641215461816,1.44062425,47280.0,47278.0,0.14]
[1641215462516,1.44062425,47280.0,47278.0,0.327]
[1641215463821,1.44062425,47280.0,47276.0,0.73218819]
[1641215464520,1.44062425,47280.0,47276.0,0.92618819]
[1641215464719,1.44062425,47280.0,47276.0,0.334]
[1641215465419,1.44062425,47280.0,47278.0,0.14]
[1641215466519,1.44062425,47280.0,47278.0,0.33]
[1641215467923,1.44062425,47280.0,47278.0,0.14]
[1641215468527,1.44062425,47280.0,47278.0,0.33]
[1641215469926,1.44062425,47280.0,47278.0,0.14]
[1641215470528,1.44062425,47280.0,47278.0,0.333]
[1641215470728,0.0900307,47281.0,47278.0,0.333]
[1641215471929,0.0900307,47281.0,47278.0,0.14]
[1641215472530,0.0900307,47281.0,47278.0,0.336]
[1641215473831,0.0900307,47281.0,47278.0,0.14]
[1641215474431,0.0900307,47281.0,47278.0,0.335]
[1641215475832,0.0900307,47281.0,47278.0,0.14]
[1641215476533,0.0900307,47281.0,47278.0,0.193]
[1641215476732,0.0900307,47281.0,47278.0,0.333]
[1641215476934,0.1488907,47281.0,47278.0,0.193]
[1641215477134,0.1488907,47281.0,47278.0,0.333]
[1641215477736,0.1488907,47281.0,47278.0,0.14]
[1641215478436,0.1300307,47280.0,47278.0,0.331]
[1641215479338,0.0900307,47279.0,47278.0,0.331]
[1641215480540,0.0900307,47279.0,47278.0,0.523]
[1641215481839,0.0900307,47279.0,47278.0,0.14]
[1641215482441,0.0900307,47280.0,47278.0,0.333]
[1641215483841,0.0900307,47280.0,47278.0,0.14]
[1641215484440,0.0900307,47280.0,47278.0,0.333]
[1641215484640,0.0900307,47281.0,47278.0,0.333]
[1641215485943,0.0900307,47281.0,47278.0,0.14]
[1641215486543,0.0900307,47281.0,47278.0,0.333]
[1641215487944,0.0900307,47281.0,47278.0,0.14]
[1641215488545,0.0900307,47281.0,47278.0,0.332]
[1641215489844,0.0900307,47281.0,47278.0,0.14]
[1641215490448,0.1665007,47281.0,47278.0,0.333]
[1641215491748,0.0900307,47280.0,47278.0,0.14]
[1641215492448,0.0900307,47280.0,47278.0,0.332]
[1641215493849,0.0900307,47280.0,47278.0,0.14]
[1641215494451,0.0900307,47280.0,47278.0,0.333]
[1641215495753,0.0900307,47280.0,47278.0,0.14]
[1641215496554,0.0900307,47280.0,47278.0,0.332]
[1641215497856,0.0900307,47280.0,47278.0,0.14]
[1641215498456,0.0900307,47280.0,47278.0,0.333]
[1641215499956,0.0900307,47280.0,47278.0,0.14]
[1641215500572,0.0900307,47280.0,47278.0,0.332]
[1641215501872,0.0900307,47280.0,47278.0,0.14]
[1641215502573,0.0900307,47280.0,47278.0,0.332]
[1641215503874,0.0900307,47280.0,47278.0,0.14]
[1641215504475,0.0900307,47280.0,47278.0,0.333]
[1641215505781,0.0900307,47281.0,47278.0,0.14]
[1641215506581,0.0900307,47281.0,47278.0,0.333]
[1641215507781,0.0900307,47281.0,47278.0,0.14]
[1641215508481,0.0900307,47281.0,47278.0,0.333]
[1641215509781,0.0900307,47281.0,47278.0,0.14]
[1641215510482,0.0900307,47281.0,47278.0,0.333]
[1641215511882,0.0900307,47281.0,47278.0,0.14]
[1641215512585,0.0900307,47281.0,47278.0,0.334]
[1641215513887,0.0900307,47281.0,47278.0,0.14]
[1641215514585,0.0900307,47281.0,47278.0,0.334]
[1641215515788,0.0900307,47281.0,47278.0,0.14]
[1641215516591,0.0900307,47281.0,47278.0,0.333]
[1641215517988,0.0900307,47281.0,47278.0,0.14]
[1641215518585,0.0900307,47281.0,47278.0,0.333]
[1641215520389,0.0900307,47281.0,47278.0,0.4001]
[1641215520587,0.0900307,47281.0,47278.0,0.7741]
[1641215521488,0.0900307,47281.0,47279.0,1.37645169]
[1641215522088,0.0900307,47281.0,47279.0,0.59218819]
[1641215522691,0.0900307,47281.0,47279.0,0.78618819]
[1641215522990,0.14033567,47282.0,47279.0,0.78618819]
[1641215523191,0.14033567,47282.0,47281.0,0.14]
[1641215524693,0.14033567,47282.0,47281.0,0.335]
[1641215525897,0.14033567,47282.0,47281.0,0.14]
[1641215526598,0.14033567,47282.0,47281.0,0.333]
[1641215527899,0.14033567,47282.0,47281.0,0.14]
[1641215528699,0.14033567,47282.0,47281.0,0.336]
[1641215529899,0.14033567,47282.0,47281.0,0.14]
[1641215530600,0.14033567,47282.0,47281.0,0.336]
[1641215533902,0.14033567,47282.0,47281.0,0.14]
[1641215534605,0.14033567,47282.0,47281.0,0.335]
[1641215536507,0.14033567,47282.0,47281.0,0.14]
[1641215536707,0.14033567,47282.0,47281.0,0.336]
[1641215538511,0.14033567,47282.0,47281.0,0.14]
[1641215538811,1.44062425,47284.0,47281.0,0.41642]
[1641215539012,0.09002088,47282.0,47281.0,0.41642]
[1641215539211,0.09002088,47282.0,47281.0,0.43757069]
[1641215539816,1.44062425,47284.0,47281.0,0.43757069]
[1641215539817,0.09002088,47283.0,47281.0,1.83715873]
[1641215540013,0.09002088,47283.0,47282.0,0.18]
[1641215540415,0.09002088,47283.0,47282.0,0.181]
[1641215540613,0.09002088,47283.0,47282.0,0.51233567]
[1641215541013,0.09002088,47287.0,47282.0,1.31973552]
[1641215541214,0.09002088,47287.0,47282.0,1.31873552]
[1641215541914,0.09002088,47288.0,47286.0,0.14]
[1641215542613,0.09002088,47288.0,47286.0,0.327]
[1641215543216,0.09002088,47289.0,47286.0,0.327]
[1641215544717,1.53064513,47289.0,47286.0,0.327]
[1641215545317,0.09002088,47288.0,47286.0,0.327]
[1641215545916,0.09002088,47288.0,47286.0,0.14]
[1641215546721,0.09002088,47288.0,47286.0,0.327]
[1641215548020,0.09002088,47288.0,47286.0,0.14]
[1641215548620,0.09002088,47288.0,47286.0,0.329]
[1641215548821,0.09002088,47289.0,47286.0,0.329]
[1641215549834,1.53064513,47289.0,47286.0,0.329]
[1641215550037,1.53064513,47289.0,47286.0,0.14]
[1641215550636,0.09002088,47288.0,47286.0,0.329]
[1641215552037,0.09002088,47288.0,47286.0,0.14]
[1641215552237,1.53064513,47288.0,47286.0,0.14]
[1641215552740,0.09002088,47287.0,47286.0,0.329]
[1641215554139,0.09002088,47287.0,47286.0,0.14]
[1641215554638,0.09002088,47287.0,47286.0,0.329]
[1641215555341,1.53064513,47288.0,47286.0,0.329]
[1641215556139,1.53064513,47288.0,47286.0,0.14]
[1641215556540,0.09002088,47287.0,47286.0,0.14]
[1641215556740,0.09002088,47287.0,47286.0,0.329]
[1641215558041,0.09002088,47287.0,47286.0,0.14]
[1641215558441,0.16689088,47291.0,47286.0,0.14]
[1641215558641,0.16689088,47291.0,47288.0,0.14]
[1641215559642,0.09002088,47290.0,47288.0,0.14]
[1641215560642,0.09002088,47290.0,47288.0,0.326]
[1641215561545,0.13002088,47291.0,47288.0,0.326]
[1641215562046,0.09002088,47291.0,47288.0,0.326]
[1641215562246,0.04,47290.0,47288.0,0.326]
[1641215562847,0.11812,47290.0,47288.0,0.325]
[1641215563050,0.20814088,47290.0,47288.0,0.185]
[1641215563951,0.20814088,47290.0,47280.0,0.58973953]
[1641215564152,0.04,47286.0,47280.0,0.58973953]
[1641215564752,0.14033567,47282.0,47280.0,0.195]
[1641215565851,0.09002088,47281.0,47280.0,0.195]
[1641215566051,1.28939156,47281.0,47278.0,0.14]
[1641215566751,0.8395675,47279.0,47278.0,0.336]
[1641215567952,0.8395675,47279.0,47278.0,0.14]
[1641215568453,0.9272775,47279.0,47278.0,0.14]
[1641215568653,1.01729838,47279.0,47278.0,0.14]
[1641215568855,1.01729838,47279.0,47278.0,0.335]
[1641215569254,0.17773088,47279.0,47278.0,0.335]
[1641215569954,0.17773088,47279.0,47278.0,0.195]
[1641215570155,0.17773088,47279.0,47278.0,0.14]
[1641215570554,0.17773088,47279.0,47274.0,0.58973953]
[1641215570758,0.17773088,47279.0,47278.0,0.328]
[1641215571157,0.09002088,47279.0,47278.0,0.328]
[1641215571353,0.09002088,47279.0,47278.0,0.188]
[1641215571555,0.14033567,47282.0,47278.0,0.188]
[1641215571754,0.14033567,47282.0,47278.0,0.328]
[1641215571956,0.04,47280.0,47278.0,0.328]
[1641215572155,1.57365425,47280.0,47274.0,0.82906346]
[1641215572355,1.57365425,47280.0,47275.0,0.72973953]
[1641215572755,1.53365425,47280.0,47278.0,0.14]
[1641215574158,1.57365425,47280.0,47278.0,0.14]
[1641215574858,1.53365425,47280.0,47278.0,0.324]
[1641215575559,1.53365425,47280.0,47278.0,0.184]
[1641215575759,1.57365425,47280.0,47278.0,0.324]
[1641215576360,1.53365425,47280.0,47278.0,0.324]
[1641215576559,1.57365425,47280.0,47278.0,0.184]
[1641215576761,1.57365425,47280.0,47278.0,0.186]
[1641215577260,1.53365425,47280.0,47278.0,0.326]
[1641215577862,1.57365425,47280.0,47278.0,0.186]
[1641215578061,1.57365425,47280.0,47275.0,0.58973953]
[1641215578262,1.57365425,47280.0,47278.0,0.14]
[1641215578761,1.53365425,47280.0,47278.0,0.326]
[1641215579163,1.53365425,47280.0,47278.0,0.186]
[1641215579361,1.53365425,47280.0,47278.0,0.326]
[1641215580062,1.57365425,47280.0,47275.0,0.58973953]
[1641215580262,1.57365425,47280.0,47278.0,0.14]
[1641215580462,1.53365425,47280.0,47278.0,0.14]
[1641215580761,1.53365425,47280.0,47278.0,0.328]
[1641215580962,1.44062425,47279.0,47278.0,0.328]
[1641215581164,1.44062425,47279.0,47278.0,0.188]
[1641215581462,1.44062425,47279.0,47278.0,0.328]
[1641215581663,0.14033567,47282.0,47278.0,0.328]
[1641215581664,1.44062425,47280.0,47278.0,0.328]
[1641215582063,1.44062425,47280.0,47278.0,0.14]
[1641215582462,1.48062425,47280.0,47278.0,0.14]
[1641215582864,1.48062425,47280.0,47278.0,0.325]
[1641215583063,1.48062425,47280.0,47278.0,0.185]
[1641215583667,1.44062425,47280.0,47278.0,0.325]
[1641215584063,1.44062425,47280.0,47278.0,0.14]
[1641215584264,1.44062425,47280.0,47278.0,0.12]
[1641215584665,1.44062425,47280.0,47278.0,0.14]
[1641215584865,1.44062425,47280.0,47278.0,0.325]
[1641215585464,1.44062425,47280.0,47278.0,0.185]
[1641215586068,1.44062425,47280.0,47275.0,0.58973953]
[1641215586268,1.44062425,47280.0,47278.0,0.14]
[1641215586768,1.44062425,47280.0,47278.0,0.324]
[1641215588069,1.44062425,47280.0,47278.0,0.14]
[1641215588472,1.53065337,47281.0,47278.0,0.14]
[1641215588873,1.53065337,47281.0,47278.0,0.324]
[1641215589170,0.09002912,47281.0,47278.0,0.324]
[1641215590072,0.09002912,47281.0,47278.0,0.14]
[1641215590886,0.09002912,47281.0,47278.0,0.91973953]
[1641215592186,1.53065337,47281.0,47278.0,0.72973953]
[1641215592386,1.53065337,47281.0,47278.0,0.14]
[1641215592786,1.53065337,47281.0,47278.0,0.33]
[1641215594786,1.53065337,47281.0,47278.0,0.331]
[1641215596087,1.53065337,47281.0,47278.0,0.14]
[1641215596887,1.53065337,47281.0,47278.0,0.331]
[1641215598190,1.53065337,47281.0,47278.0,0.14]
[1641215598893,1.53065337,47281.0,47278.0,0.33]
[1641215600895,1.53065337,47281.0,47278.0,0.521]
[1641215602497,1.53065337,47281.0,47278.0,0.14]
[1641215602802,1.53065337,47281.0,47278.0,0.331]
[1641215604200,1.53065337,47281.0,47278.0,0.14]
[1641215604501,0.09002912,47281.0,47278.0,0.14]
[1641215604999,0.09002912,47280.0,47278.0,0.33]
[1641215605699,1.53065337,47281.0,47278.0,0.33]
[1641215606401,1.53065337,47281.0,47278.0,0.14]
[1641215606602,0.09002912,47281.0,47278.0,0.14]
[1641215606799,0.09002912,47281.0,47278.0,0.33]
[1641215607200,0.09002912,47281.0,47278.0,0.91973953]
[1641215608301,0.09002912,47281.0,47278.0,0.72973953]
[1641215608802,0.09002912,47281.0,47278.0,0.91973953]
[1641215609605,0.09002912,47281.0,47278.0,0.33]
[1641215610204,0.09002912,47281.0,47278.0,0.14]
[1641215610802,0.09002912,47281.0,47278.0,0.331]
[1641215611803,0.17106912,47281.0,47278.0,0.331]
[1641215612306,0.17106912,47281.0,47278.0,0.14]
[1641215612503,0.09002912,47280.0,47278.0,0.14]
[1641215612903,0.09002912,47280.0,47278.0,0.331]
[1641215614207,0.09002912,47280.0,47278.0,0.14]
[1641215614811,0.13002912,47280.0,47278.0,0.191]
[1641215616010,0.09002912,47279.0,47278.0,0.191]
[1641215616210,0.09002912,47279.0,47274.0,0.58973953]
[1641215616410,0.13002912,47279.0,47274.0,0.58973953]
[1641215616810,0.13002912,47279.0,47274.0,0.78073953]
[1641215617210,0.13002912,47279.0,47274.0,0.191]
[1641215617412,0.14033567,47275.0,47274.0,0.191]
[1641215618215,0.14033567,47275.0,47273.0,0.72973953]
[1641215618817,0.14033567,47275.0,47273.0,0.92373953]
[1641215619018,0.23036479,47275.0,47273.0,0.92373953]
[1641215620119,0.09002912,47274.0,47273.0,0.92373953]
[1641215620320,0.09002912,47274.0,47273.0,0.72973953]
[1641215621020,0.09002912,47274.0,47273.0,0.92573953]
[1641215621321,0.09002912,47274.0,47273.0,1.68320532]
[1641215622626,0.09002912,47274.0,47273.0,0.92573953]
[1641215622823,0.09002912,47274.0,47273.0,0.336]
[1641215623122,0.13982312,47274.0,47273.0,0.196]
[1641215623523,0.13982312,47274.0,47271.0,0.82906346]
[1641215623823,0.16098659,47274.0,47270.0,0.82746119]
[1641215624039,0.001,47271.0,47270.0,0.82746119]
[1641215624227,0.09208,47271.0,47270.0,0.82746119]
[1641215624425,0.13208,47271.0,47270.0,0.82746119]
[1641215624623,0.22367043,47271.0,47268.0,1.18437638]
[1641215624823,0.001,47269.0,47268.0,1.18437638]
[1641215625023,0.001,47269.0,47262.0,1.18437638]
[1641215625325,0.36867043,47271.0,47262.0,1.18437638]
[1641215625524,0.14033567,47266.0,47262.0,1.18437638]
[1641215625723,0.14033567,47266.0,47263.0,0.7579495]
[1641215626625,0.09002912,47265.0,47262.0,0.7579495]
[1641215627025,0.09002912,47265.0,47263.0,0.14]
[1641215628027,0.09002912,47265.0,47264.0,0.7579495]
[1641215629027,0.28002912,47265.0,47264.0,0.7579495]
[1641215630330,0.09002912,47265.0,47264.0,0.7579495]
[1641215630928,0.28002912,47265.0,47264.0,0.7579495]
[1641215632241,0.09002912,47265.0,47264.0,0.7579495]
[1641215633041,0.28202912,47265.0,47264.0,0.7579495]
[1641215633845,0.28202912,47265.0,47262.0,0.82904856]
[1641215634043,0.28202912,47265.0,47263.0,0.59234702]
[1641215634444,0.09002912,47265.0,47263.0,0.59234702]
[1641215634646,0.09002912,47265.0,47264.0,0.14]
[1641215634845,0.14033567,47266.0,47264.0,0.14]
[1641215635044,0.193,47265.0,47263.0,0.59234702]
[1641215635245,0.193,47265.0,47263.0,0.73234702]
[1641215636045,0.193,47265.0,47263.0,0.14]
[1641215636245,0.49989429,47266.0,47263.0,0.14]
[1641215636947,0.33433567,47266.0,47263.0,0.14]
[1641215637547,0.194,47266.0,47263.0,0.14]
[1641215638350,0.35955862,47270.0,47263.0,0.14]
[1641215638750,0.35955862,47270.0,47260.0,0.16149573]
[1641215638950,0.55155862,47270.0,47269.0,0.14]
[1641215639151,0.55255862,47270.0,47260.0,0.16149573]
[1641215639351,0.55155862,47270.0,47267.0,0.14]
[1641215639553,0.001,47268.0,47267.0,0.14]
[1641215640956,0.191,47268.0,47267.0,0.14]
[1641215641155,0.191,47268.0,47262.0,0.14]
[1641215641355,0.19,47268.0,47262.0,0.14]
[1641215641556,0.19,47268.0,47265.0,0.14]
[1641215641759,0.04,47267.0,47265.0,0.14]
[1641215641958,0.19,47268.0,47265.0,0.14]
[1641215642160,0.54955862,47268.0,47265.0,0.14]
[1641215642360,0.35955862,47268.0,47265.0,0.14]
[1641215643064,0.55055862,47268.0,47265.0,0.14]
[1641215643663,0.14033567,47267.0,47265.0,0.14]
[1641215644963,0.33233567,47267.0,47265.0,0.14]
[1641215646467,0.14033567,47267.0,47265.0,0.14]
[1641215647067,0.33133567,47267.0,47265.0,0.14]
[1641215648270,0.14033567,47267.0,47265.0,0.14]
[1641215649071,0.33233567,47267.0,47265.0,0.14]
[1641215650272,0.14033567,47267.0,47265.0,0.14]
[1641215650971,0.33233567,47267.0,47265.0,0.14]
[1641215653473,0.69192343,47267.0,47265.0,0.14]
[1641215654271,0.49992343,47267.0,47265.0,0.14]
[1641215655072,0.69192343,47267.0,47265.0,0.14]
[1641215655876,0.55158776,47267.0,47266.0,0.18]
[1641215656275,1.8859,47281.0,47266.0,0.18]
[1641215656474,1.8859,47281.0,47270.0,0.06]
[1641215656674,1.895694,47281.0,47274.0,0.14]
[1641215656874,1.55980719,47277.0,47274.0,0.22381]
[1641215657076,0.47667134,47275.0,47274.0,0.22381]
[1641215657778,0.196,47275.0,47274.0,0.22381]
[1641215658379,1.8859,47281.0,47274.0,0.22381]
[1641215658576,1.8859,47281.0,47278.0,0.14]
[1641215658779,1.59980719,47283.0,47278.0,0.14]
[1641215658978,0.55678812,47280.0,47278.0,0.14]
[1641215660379,0.36678812,47280.0,47278.0,0.14]
[1641215660781,1.74993686,47284.0,47278.0,0.14]
[1641215660983,0.188,47280.0,47278.0,0.14]
[1641215662281,1.74993686,47284.0,47278.0,0.14]
[1641215662682,1.74993686,47284.0,47274.0,0.08381]
[1641215662882,2.11672498,47284.0,47272.0,0.73212946]
[1641215663083,2.30472498,47284.0,47272.0,0.61212946]
[1641215663283,2.30472498,47284.0,47278.0,0.14]
[1641215663586,2.30472498,47284.0,47276.0,0.14]
[1641215664485,2.11672498,47284.0,47276.0,0.14]
[1641215665084,2.30572498,47284.0,47276.0,0.14]
[1641215665485,2.26572498,47284.0,47272.0,0.79212946]
[1641215665684,2.26572498,47284.0,47281.0,0.14]
[1641215665883,2.25593098,47284.0,47281.0,0.21882]
[1641215666485,2.06693098,47284.0,47281.0,0.21882]
[1641215666686,1.92659531,47284.0,47281.0,0.21882]
[1641215666886,1.55980719,47286.0,47281.0,0.21882]
[1641215667086,0.132,47284.0,47281.0,0.21782]
[1641215667285,0.132,47284.0,47283.0,0.14]
[1641215668488,0.04,47287.0,47283.0,0.14]
[1641215668989,0.232,47287.0,47279.0,0.14033567]
[1641215669188,0.232,47287.0,47280.0,0.14]
[1641215669391,0.10058774,47286.0,47280.0,0.14]
[1641215669688,0.232,47287.0,47280.0,0.14]
[1641215669889,0.14033567,47284.0,47280.0,0.14]
[1641215670389,0.14033567,47284.0,47283.0,0.14]
[1641215670990,0.14033567,47284.0,47280.0,0.14]
[1641215671189,0.33033567,47284.0,47280.0,0.14]
[1641215671394,0.33033567,47284.0,47275.0,0.13173]
[1641215671791,0.33033567,47284.0,47280.0,0.14]
[1641215672193,0.33033567,47284.0,47283.0,0.14]
[1641215672392,0.09005066,47283.0,47280.0,0.14]
[1641215673003,0.188,47283.0,47280.0,0.272]
[1641215674505,0.14033567,47284.0,47280.0,0.14]
[1641215675007,0.32833567,47284.0,47280.0,0.243]
[1641215675209,0.09005066,47283.0,47280.0,0.243]
[1641215676308,0.09005066,47283.0,47280.0,0.14]
[1641215676510,0.14033567,47284.0,47280.0,0.14]
[1641215677108,0.32533567,47284.0,47280.0,0.259]
[1641215677912,0.09005066,47283.0,47280.0,0.259]
[1641215678309,0.20714567,47284.0,47280.0,0.14]
[1641215678910,0.09005066,47283.0,47280.0,0.14]
[1641215679114,0.09005066,47283.0,47280.0,0.259]
[1641215679313,0.04,47281.0,47280.0,0.119]
[1641215679914,0.09005066,47283.0,47280.0,0.119]
[1641215680313,0.40193967,47284.0,47280.0,0.119]
[1641215681114,0.58693967,47284.0,47280.0,0.119]
[1641215681317,0.04,47281.0,47280.0,0.119]
[1641215681515,0.04,47281.0,47271.0,0.0211553]
[1641215681718,0.04,47281.0,47268.0,0.8713101]
[1641215681719,0.04,47274.0,47270.0,0.8273642]
[1641215681915,0.11434,47274.0,47272.0,0.59097443]
[1641215682115,0.25467567,47274.0,47272.0,0.59097443]
[1641215682315,0.001,47273.0,47272.0,0.59097443]
[1641215682515,0.041,47273.0,47272.0,0.59097443]
[1641215682714,0.050794,47273.0,47272.0,0.59097443]
[1641215682915,0.14084466,47273.0,47272.0,0.59097443]
[1641215683115,0.36329711,47273.0,47272.0,0.59097443]
[1641215683317,0.36329711,47273.0,47267.0,0.59097443]
[1641215683516,0.36229711,47273.0,47268.0,0.14]
[1641215683717,0.001,47269.0,47267.0,0.59097443]
[1641215684020,0.14133567,47268.0,47267.0,0.59097443]
[1641215684717,0.14133567,47268.0,47267.0,0.14]
[1641215684917,0.14133567,47268.0,47264.0,0.59097443]
[1641215685119,0.32333567,47268.0,47264.0,0.59097443]
[1641215685318,0.04,47266.0,47264.0,0.59097443]
[1641215685717,0.04,47266.0,47263.0,0.8273642]
[1641215685718,0.02116646,47265.0,47263.0,0.59147942]
[1641215685918,0.001,47264.0,47262.0,0.8273642]
[1641215686118,0.18033567,47263.0,47262.0,0.8273642]
[1641215686721,0.18133567,47263.0,47262.0,0.8273642]
[1641215687118,0.55396186,47263.0,47262.0,0.8273642]
[1641215687320,0.55496186,47263.0,47255.0,0.8273642]
[1641215687519,0.001,47258.0,47255.0,0.8273642]
[1641215687718,0.001,47256.0,47255.0,0.8273642]
[1641215688118,0.14133567,47256.0,47255.0,0.8273642]
[1641215688318,0.14133567,47256.0,47254.0,1.48808701]
[1641215688518,0.001,47255.0,47254.0,1.48808701]
[1641215689119,0.187,47255.0,47254.0,1.48808701]
[1641215689520,0.27705066,47255.0,47254.0,0.66072281]
[1641215690520,0.09105066,47255.0,47254.0,0.66072281]
[1641215690922,0.09005066,47255.0,47254.0,0.66072281]
[1641215691123,0.27905066,47255.0,47254.0,0.66072281]
[1641215692423,0.09005066,47255.0,47254.0,0.66072281]
[1641215693124,0.28505066,47255.0,47254.0,0.66072281]
[1641215694226,0.28505066,47255.0,47254.0,0.80105848]
[1641215694427,0.09005066,47255.0,47254.0,0.80105848]
[1641215695230,0.28605066,47255.0,47254.0,0.80105848]
[1641215695430,0.28605066,47255.0,47254.0,0.82222117]
[1641215696029,0.196,47255.0,47254.0,0.82222117]
[1641215696629,1.20104182,47257.0,47254.0,0.82222117]
[1641215697032,0.93076827,47255.0,47254.0,0.82222117]
[1641215697232,0.93076827,47255.0,47254.0,0.96222117]
[1641215697632,0.93076827,47255.0,47254.0,0.94105848]
[1641215697830,0.84071761,47255.0,47254.0,0.94105848]
[1641215698231,1.39504182,47257.0,47254.0,0.94105848]
[1641215698431,0.09005066,47256.0,47254.0,0.94105848]
[1641215699232,0.27805066,47256.0,47254.0,0.94105848]
[1641215699735,1.47909248,47256.0,47255.0,1.8465639]
[1641215700133,1.47909248,47256.0,47255.0,0.66072281]
[1641215700538,1.29109248,47256.0,47255.0,0.66072281]
[1641215700941,1.29109248,47256.0,47255.0,0.72072281]
[1641215701141,1.48109248,47256.0,47255.0,0.84072281]
[1641215701438,1.48109248,47256.0,47255.0,0.66072281]
[1641215701742,1.39104182,47256.0,47255.0,0.84072281]
[1641215702039,1.48109248,47256.0,47255.0,0.84072281]
[1641215702440,0.28005066,47256.0,47255.0,2.0265639]
[1641215702642,0.09005066,47256.0,47255.0,2.0265639]
[1641215703041,0.09005066,47256.0,47255.0,1.8465639]
[1641215703243,0.27405066,47256.0,47255.0,1.8465639]
[1641215703442,0.184,47256.0,47255.0,0.66072281]
[1641215704243,0.184,47256.0,47255.0,0.72072281]
[1641215704444,0.09005066,47256.0,47255.0,0.72072281]
[1641215704643,1.29109248,47256.0,47255.0,1.90674327]
[1641215705043,1.29109248,47256.0,47255.0,0.72072281]
[1641215705245,0.194,47256.0,47255.0,0.72072281]
[1641215705444,1.20104182,47257.0,47255.0,0.72072281]
[1641215706447,0.09005066,47256.0,47255.0,0.72072281]
[1641215707063,1.20104182,47257.0,47255.0,0.7327328]
[1641215707262,0.84067201,47258.0,47255.0,2.03287654]
[1641215707465,0.84067201,47258.0,47257.0,0.26]
[1641215707662,0.84067201,47258.0,47257.0,0.261]
[1641215707867,0.84067201,47258.0,47257.0,0.14]
[1641215708265,0.84067201,47258.0,47257.0,0.28115998]
[1641215708564,0.84067201,47258.0,47257.0,0.16115998]
[1641215709068,0.84067201,47258.0,47257.0,0.82188279]
[1641215711473,1.20104182,47260.0,47257.0,0.82188279]
[1641215712170,1.20104182,47260.0,47258.0,0.66072281]
[1641215712372,1.20104182,47259.0,47258.0,0.72072281]
[1641215713374,1.20104182,47260.0,47258.0,0.72072281]
[1641215713974,1.20104182,47260.0,47259.0,0.66072281]